[Event "Fagernes Chess GM-Swiss 2024"]
[Site "Fagernes"]
[Date "2024.03.27"]
[Round "5.26"]
[White "Kreken, Eivind Grunt"]
[Black "Mihajlov, Sebastian"]
[Result "1/2-1/2"]
[ECO "A07"]
[WhiteElo "2215"]
[BlackElo "2373"]
[Annotator "RC"]
[PlyCount "158"]
[EventDate "2024.03.25"]
[EventType "swiss"]
[EventCountry "NOR"]
[SourceTitle "playchess.com"]
[Source "ChessBase"]
[SourceQuality "1"]
[TimeControl "40/6000+30:2400+30"]

1. Nf3 {[%emt 1:05:43]} d5 {[%emt 0:02:05]} 2. g3 {[%emt 0:01:43]} c6 {[%emt 0:01:56]} 3. Bg2 {[%emt 0:01:06]} Bf5 {[%emt 0:00:30]} 4. O-O {[%emt 0:02:34]} e6 {[%emt 0:00:57]} 5. c4 {[%emt 0:03:19]} h6 {[%emt 0:01:44]} 6. Qb3 {[%emt 0:02:06]} Qb6 {[%emt 0:02:45]} 7. d3 {[%emt 0:02:08]} Nf6 {[%emt 0:01:11]} 8. Be3 {[%emt 0:04:51]} Qc7 {[%emt 0:07:09]} 9. Bf4 {[%emt 0:02:21]} Qb6 {[%emt 0:00:07]} 10. Be3 {[%emt 0:09:46]} Qc7 {[%emt 0:01:58]} 11. Nc3 {[%emt 0:05:23]} Nbd7 {[%emt 0:08:55]} 12. cxd5 {[%emt 0:02:37]} exd5 {[%emt 0:02:50]} 13. Rac1 {[%emt 0:01:45]} Qb8 {[%emt 0:04:46]} 14. Bf4 {[%emt 0:13:08]} Nc5 {[%emt 0:00:05]} 15. Qc2 {[%emt 0:01:17]} Qd8 {[%emt 0:00:30]} 16. e4 {[%emt 0:03:07]} dxe4 {[%emt 0:02:39]} 17. dxe4 {[%emt 0:00:58]} Bh7 {[%emt 0:01:01]} 18. Rfd1 {[%emt 0:04:06]} Qc8 {[%emt 0:02:24]} 19. Qe2 {[%emt 0:03:08]} Be7 {[%emt 0:03:49]} 20. Nd5 {[%emt 0:02:45]} Ne6 {[%emt 0:07:55]} 21. Nxe7 {[%emt 0:04:59]} Nxf4 {[%emt 0:00:06]} 22. gxf4 {[%emt 0:03:22]} Kxe7 {[%emt 0:00:04]} 23. Qc4 {[%emt 0:08:04]} Kf8 {[%emt 0:02:11]} 24. f5 {[%emt 0:02:35]} Qc7 {[%emt 0:00:50]} 25. e5 {[%emt 0:00:50]} Ne8 {[%emt 0:00:18]} 26. e6 {[%emt 0:02:08]} Nf6 {[%emt 0:00:03]} 27. Bh3 {[%emt 0:03:19]} fxe6 {[%emt 0:06:36]} 28. Nd4 {[%emt 0:05:25]} Bg8 {[%emt 0:00:04]} 29. fxe6 {[%emt 0:00:26]} g6 {[%emt 0:00:04]} 30. Qc3 {[%emt 0:02:11]} Qe7 {[%emt 0:14:58]} 31. Nf3 {[%emt 0:00:31]} Rh7 {[%emt 0:03:42]} 32. Ne5 {[%emt 0:01:40]} Rg7 33. Re1 {[%emt 0:04:56]} Nd5 {[%emt 0:09:10]} 34. Qf3+ {[%emt 0:00:41]} Ke8 {[%emt 0:00:06]} 35. Kh1 {[%emt 0:02:41]} Qf6 {[%emt 0:01:22]} 36. Qg3 {[%emt 0:01:35]} Nf4 {[%emt 0:04:31]} 37. Nd7 {[%emt 0:03:19]} Qg5 {[%emt 0:00:13]} 38. Qxg5 {[%emt 0:00:52]} hxg5 {[%emt 0:00:05]} 39. Bf1 {[%emt 0:00:38]} Bxe6 {[%emt 0:02:11]} 40. Nc5 {[%emt 0:00:21]} Re7 {[%emt 0:00:06]} 41. Nxe6 {[%emt 0:02:53]} Rxe6 {[%emt 0:00:32]} 42. Rxe6+ {[%emt 0:01:37]} Nxe6 {[%emt 0:00:07]} 43. Kg2 {[%emt 0:01:18]} Ke7 {[%emt 0:00:25]} 44. Rd1 {[%emt 0:02:58]} Rd8 {[%emt 0:04:58]} 45. Rxd8 {[%emt 0:00:18]} Nxd8 {[%emt 0:00:10]} 46. Kf3 {[%emt 0:01:01]} Nf7 {[%emt 0:01:00]} 47. Ke4 {[%emt 0:07:21]} Kf6 {[%emt 0:01:23]} 48. b4 {[%emt 0:01:37]} Ne5 {[%emt 0:01:59]} 49. h3 {[%emt 0:00:43]} Ke6 {[%emt 0:01:20]} 50. Kd4 {[%emt 0:02:10]} b6 {[%emt 0:01:20]} 51. Be2 {[%emt 0:01:01]} Kf5 {[%emt 0:10:58]} 52. Ke3 {[%emt 0:03:35]} g4 {[%emt 0:01:06]} 53. hxg4+ {[%emt 0:00:23]} Nxg4+ {[%emt 0:00:09]} 54. Kf3 {[%emt 0:00:02]} Ne5+ {[%emt 0:00:15]} 55. Ke3 {[%emt 0:00:09]} g5 {[%emt 0:00:09]} 56. f3 {[%emt 0:01:23]} Nd7 {[%emt 0:00:56]} 57. Bd3+ {[%emt 0:01:02]} Ke5 {[%emt 0:00:05]} 58. Be4 {[%emt 0:00:34]} c5 {[%emt 0:00:48]} 59. bxc5 {[%emt 0:00:46]} Nxc5 {[%emt 0:00:09]} 60. Bc6 {[%emt 0:01:26]} Ne6 {[%emt 0:00:20]} 61. a4 {[%emt 0:05:38]} Nd4 {[%emt 0:01:01]} 62. Bb7 {[%emt 0:01:43]} Ne6 {[%emt 0:05:21]} 63. Bc6 {[%emt 0:01:42]} Kd6 {[%emt 0:01:30]} 64. Be8 {[%emt 0:00:59]} a6 {[%emt 0:01:11]} 65. Ke4 {[%emt 0:00:48]} Kc5 {[%emt 0:01:37]} 66. Bd7 {[%emt 0:00:27]} Nd4 {[%emt 0:00:26]} 67. Be8 {[%emt 0:01:59]} a5 {[%emt 0:00:51]} 68. Bd7 {[%emt 0:00:13]} Nb3 {[%emt 0:00:48]} 69. Kf5 {[%emt 0:00:59]} Nd2 {[%emt 0:00:17]} 70. Kg4 {[%emt 0:00:13]} Kb4 {[%emt 0:00:58]} 71. Bc6 {[%emt 0:00:28]} Nc4 {[%emt 0:00:40]} 72. Kf5 {[%emt 0:01:11]} Kc5 {[%emt 0:07:45]} 73. Bd7 {[%emt 0:01:00]} b5 {[%emt 0:02:08]} 74. axb5 {[%emt 0:04:58]} a4 {[%emt 0:02:58]} 75. b6 {[%emt 0:00:14]} a3 {[%emt 0:00:18]} 76. b7 {[%emt 0:00:16]} Nd6+ {[%emt 0:00:06]} 77. Kxg5 {[%emt 0:00:06]} Nxb7 {[%emt 0:00:05]} 78. Be6 {[%emt 0:00:07]} Nd6 {[%emt 0:03:32]} 79. Ba2 {[%emt 0:00:16]} Kd4 {[%emt 0:04:34]} 1/2-1/2

[Event "Fagernes Chess GM-Swiss 2024"]
[Site "Fagernes"]
[Date "2024.03.27"]
[Round "5.27"]
[White "Aniruddh Chatterjee"]
[Black "Kenneskog, Theodor"]
[Result "0-1"]
[ECO "A13"]
[WhiteElo "2182"]
[BlackElo "2358"]
[Annotator "RC"]
[PlyCount "116"]
[EventDate "2024.03.25"]
[EventType "swiss"]
[EventCountry "NOR"]
[SourceTitle "playchess.com"]
[Source "ChessBase"]
[SourceQuality "1"]
[TimeControl "40/6000+30:2400+30"]

1. c4 {[%emt 0:00:22]} e6 {[%emt 0:00:35]} 2. Nf3 {[%emt 0:00:30]} Nf6 {[%emt 0:00:29]} 3. b3 {[%emt 0:01:09]} d5 {[%emt 0:00:25]} 4. e3 {[%emt 0:00:06]} c5 {[%emt 0:00:43]} 5. Bb2 {[%emt 0:00:10]} Nc6 {[%emt 0:00:27]} 6. cxd5 {[%emt 0:00:30]} exd5 {[%emt 0:00:15]} 7. d4 {[%emt 0:00:06]} cxd4 {[%emt 0:00:12]} 8. exd4 {[%emt 0:01:36]} Bb4+ {[%emt 0:04:06]} 9. Nbd2 {[%emt 0:00:43]} Bg4 {[%emt 0:03:37]} 10. Be2 {[%emt 0:00:48]} Ne4 {[%emt 0:08:52]} 11. O-O {[%emt 0:00:31]} Nxd2 {[%emt 0:00:42]} 12. Nxd2 {[%emt 0:00:11]} Bxe2 {[%emt 0:00:24]} 13. Qxe2+ {[%emt 0:00:36]} Qe7 {[%emt 0:00:15]} 14. Qxe7+ {[%emt 0:01:48]} Kxe7 {[%emt 0:00:45]} 15. Nf3 {[%emt 0:00:18]} f6 {[%emt 0:04:13]} 16. g4 {[%emt 0:01:31]} Rhe8 {[%emt 0:04:35]} 17. a3 {[%emt 0:01:15]} Ba5 {[%emt 0:02:19]} 18. b4 {[%emt 0:00:12]} Bb6 {[%emt 0:00:09]} 19. Rfe1+ {[%emt 0:02:40]} Kf7 {[%emt 0:13:30]} 20. g5 {[%emt 0:03:24]} Re4 {[%emt 0:11:03]} 21. Rxe4 {[%emt 0:02:54]} dxe4 {[%emt 0:00:06]} 22. Nd2 {[%emt 0:00:03]} Nxd4 {[%emt 0:17:30]} 23. Nxe4 {[%emt 0:00:17]} Nf3+ {[%emt 0:01:06]} 24. Kg2 {[%emt 0:00:06]} Nxg5 {[%emt 0:00:10]} 25. Nd6+ {[%emt 0:00:53]} Ke6 {[%emt 0:03:39]} 26. Nc4 {[%emt 0:03:36]} Bc7 {[%emt 0:01:14]} 27. a4 {[%emt 0:07:09]} Nf7 {[%emt 0:03:00]} 28. Re1+ {[%emt 0:02:20]} Kd7 {[%emt 0:00:08]} 29. b5 {[%emt 0:00:17]} Re8 {[%emt 0:04:22]} 30. Rd1+ {[%emt 0:00:31]} Kc8 {[%emt 0:00:13]} 31. a5 {[%emt 0:07:24]} b6 {[%emt 0:10:04]} 32. axb6 {[%emt 0:12:44]} axb6 {[%emt 0:00:04]} 33. Rc1 {[%emt 0:01:05]} Kb7 {[%emt 0:00:19]} 34. Ne3 {[%emt 0:00:47]} Bf4 {[%emt 0:05:09]} 35. Rd1 {[%emt 0:00:16]} Rd8 {[%emt 0:00:12]} 36. Rxd8 {[%emt 0:00:49]} Nxd8 {[%emt 0:00:02]} 37. Nf5 {[%emt 0:00:02]} Ne6 {[%emt 0:00:29]} 38. h4 {[%emt 0:00:07]} Kc7 {[%emt 0:06:04]} 39. Kf3 {[%emt 0:00:46]} Bd6 {[%emt 0:00:51]} 40. Ke4 {[%emt 0:02:33]} Kd7 {[%emt 0:02:12]} 41. h5 {[%emt 0:42:39]} Bc5 {[%emt 0:42:11]} 42. f3 {[%emt 0:01:15]} Bf8 {[%emt 0:00:00]} 43. Bc3 {[%emt 0:00:00]} g6 {[%emt 0:00:00]} 44. hxg6 {[%emt 0:00:00]} hxg6 {[%emt 0:00:00]} 45. Nh4 {[%emt 0:00:00]} f5+ {[%emt 0:00:00]} 46. Kd5 {[%emt 0:00:00]} Nf4+ {[%emt 0:00:00]} 47. Kc4 {[%emt 0:00:00]} Ke6 {[%emt 0:00:00]} 48. Bd4 {[%emt 0:00:00]} Be7 {[%emt 0:00:00]} 49. Bf2 {[%emt 0:00:00]} Bd8 {[%emt 0:00:00]} 50. Be3 {[%emt 0:00:00]} g5 {[%emt 0:00:00]} 51. Nxf5 {[%emt 0:00:00]} Kxf5 {[%emt 0:00:00]} 52. Bf2 {[%emt 0:00:00]} Bc7 {[%emt 0:00:00]} 53. Bg1 {[%emt 0:00:00]} Ke6 {[%emt 0:00:00]} 54. Be3 {[%emt 0:00:00]} Bd8 {[%emt 0:00:00]} 55. Kd4 {[%emt 0:00:00]} Nd5 {[%emt 0:00:00]} 56. Bd2 {[%emt 0:00:00]} Nc7 {[%emt 0:00:00]} 57. Kc4 {[%emt 0:00:00]} Ne8 {[%emt 0:00:00]} 58. Be3 {[%emt 0:00:00]} Nd6+ {[%emt 0:00:00]} 0-1

[Event "Fagernes Chess GM-Swiss 2024"]
[Site "Fagernes"]
[Date "2024.03.27"]
[Round "5.28"]
[White "Carlsson, Ludvig"]
[Black "Anishka Vikram"]
[Result "1-0"]
[ECO "B76"]
[WhiteElo "2350"]
[BlackElo "1995"]
[Annotator "RC"]
[PlyCount "73"]
[EventDate "2024.03.25"]
[EventType "swiss"]
[EventCountry "NOR"]
[SourceTitle "playchess.com"]
[Source "ChessBase"]
[SourceQuality "1"]
[TimeControl "40/6000+30:2400+30"]

1. e4 {[%emt 0:00:00]} c5 {[%emt 0:02:28]} 2. Nf3 {[%emt 0:01:25]} d6 {[%emt 0:00:20]} 3. d4 {[%emt 0:00:17]} cxd4 {[%emt 0:00:08]} 4. Nxd4 {[%emt 0:00:21]} Nf6 {[%emt 0:00:19]} 5. Nc3 {[%emt 0:00:17]} g6 {[%emt 0:00:19]} 6. Be3 {[%emt 0:00:22]} Bg7 {[%emt 0:00:23]} 7. f3 {[%emt 0:00:16]} O-O {[%emt 0:00:06]} 8. Qd2 {[%emt 0:00:15]} Nc6 {[%emt 0:00:08]} 9. O-O-O {[%emt 0:00:18]} d5 {[%emt 0:00:30]} 10. exd5 {[%emt 0:00:14]} Nxd5 {[%emt 0:00:06]} 11. Nxc6 {[%emt 0:00:15]} bxc6 {[%emt 0:00:07]} 12. Bd4 {[%emt 0:00:10]} Bxd4 {[%emt 0:02:21]} 13. Qxd4 {[%emt 0:00:43]} Qb6 {[%emt 0:00:10]} 14. Na4 {[%emt 0:00:13]} Qc7 {[%emt 0:01:09]} 15. Bc4 {[%emt 0:00:15]} Nb6 {[%emt 0:00:55]} 16. Bb3 {[%emt 0:00:16]} Nxa4 {[%emt 0:01:37]} 17. Qxa4 {[%emt 0:00:12]} c5 {[%emt 0:02:45]} 18. Rhe1 {[%emt 0:00:52]} Rb8 {[%emt 0:01:18]} 19. Qe4 {[%emt 0:08:22]} Qb6 {[%emt 0:09:07]} 20. Qxe7 {[%emt 0:04:05]} c4 {[%emt 0:03:56]} 21. Rd6 {[%emt 0:01:01]} Qf2 {[%emt 0:27:26]} 22. Rd2 {[%emt 0:00:33]} Qb6 {[%emt 0:01:07]} 23. Rd6 {[%emt 0:00:12]} Qf2 {[%emt 0:00:11]} 24. Bxc4 {[%emt 0:00:19]} Bf5 {[%emt 0:08:45]} 25. Rd2 {[%emt 0:05:47]} Qb6 {[%emt 0:00:23]} 26. Bb3 {[%emt 0:00:49]} Be6 {[%emt 0:25:15]} 27. Qd6 {[%emt 0:17:29]} Qb7 {[%emt 0:05:03]} 28. Kb1 {[%emt 0:09:36]} a5 {[%emt 0:01:48]} 29. Rxe6 {[%emt 0:07:49]} fxe6 {[%emt 0:00:31]} 30. Qxe6+ {[%emt 0:00:24]} Kh8 {[%emt 0:00:12]} 31. Rd7 {[%emt 0:00:16]} Qb6 {[%emt 0:00:44]} 32. Qe5+ {[%emt 0:00:23]} Qf6 {[%emt 0:02:09]} 33. Qc7 {[%emt 0:01:11]} Qh4 {[%emt 0:00:57]} 34. Qxa5 {[%emt 0:00:14]} Rbe8 {[%emt 0:01:16]} 35. a4 {[%emt 0:00:35]} Re2 {[%emt 0:00:25]} 36. Qc3+ {[%emt 0:00:27]} Qf6 {[%emt 0:00:27]} 37. Rd8 {[%emt 0:01:41]} 1-0

[Event "Fagernes Chess GM-Swiss 2024"]
[Site "Fagernes"]
[Date "2024.03.27"]
[Round "5.29"]
[White "Haug, Havard"]
[Black "Aamodt, Peder Marcus"]
[Result "0-1"]
[ECO "D00"]
[WhiteElo "2341"]
[BlackElo "1941"]
[Annotator "RC"]
[PlyCount "56"]
[EventDate "2024.03.25"]
[EventType "swiss"]
[EventCountry "NOR"]
[SourceTitle "playchess.com"]
[Source "ChessBase"]
[SourceQuality "1"]
[TimeControl "40/6000+30:2400+30"]

1. d4 {[%emt 0:00:04]} Nf6 {[%emt 0:06:28]} 2. Nc3 {[%emt 0:00:01]} d5 {[%emt 0:00:08]} 3. Bf4 {[%emt 0:00:03]} e6 {[%emt 0:01:33]} 4. Nb5 {[%emt 0:00:04]} Na6 {[%emt 0:00:08]} 5. e3 {[%emt 0:00:06]} Be7 {[%emt 0:00:08]} 6. Nf3 {[%emt 0:00:04]} O-O {[%emt 0:00:11]} 7. h4 {[%emt 0:00:04]} c6 {[%emt 0:07:17]} 8. Nc3 {[%emt 0:00:27]} c5 {[%emt 0:00:27]} 9. Ne5 {[%emt 0:00:20]} Bd7 {[%emt 0:01:12]} 10. g4 {[%emt 0:02:10]} Be8 {[%emt 0:12:40]} 11. g5 {[%emt 0:03:47]} Nd7 {[%emt 0:06:02]} 12. Bxa6 {[%emt 0:03:48]} Nxe5 {[%emt 0:01:10]} 13. Bxb7 {[%emt 0:10:26]} Rb8 {[%emt 0:02:56]} 14. Ba6 {[%emt 0:00:15]} Rb6 {[%emt 0:23:06]} 15. Bxe5 {[%emt 0:03:59]} Rxa6 {[%emt 0:00:41]} 16. dxc5 {[%emt 0:03:41]} Bxc5 {[%emt 0:01:12]} 17. Ne2 {[%emt 0:01:39]} Bb5 {[%emt 0:13:39]} 18. Ng3 {[%emt 0:02:25]} Bd6 {[%emt 0:01:18]} 19. Qd4 {[%emt 0:01:09]} Ra4 {[%emt 0:00:47]} 20. Qc3 {[%emt 0:06:17]} Bb4 {[%emt 0:00:19]} 21. Bxg7 {[%emt 0:00:02]} Bxc3+ {[%emt 0:00:12]} 22. Bxc3 {[%emt 0:00:03]} f6 {[%emt 0:05:40]} 23. Nh5 {[%emt 0:01:19]} e5 {[%emt 0:02:53]} 24. Nxf6+ {[%emt 0:00:25]} Rxf6 {[%emt 0:00:48]} 25. gxf6 {[%emt 0:00:03]} Qxf6 {[%emt 0:00:17]} 26. b3 {[%emt 0:01:25]} Qf3 {[%emt 0:00:27]} 27. Kd2 {[%emt 0:00:03]} Rg4 {[%emt 0:01:20]} 28. Kc1 {[%emt 0:00:42]} Qxh1+ {[%emt 0:00:06]} 0-1

[Event "Fagernes Chess GM-Swiss 2024"]
[Site "Fagernes"]
[Date "2024.03.27"]
[Round "5.30"]
[White "Fiskaaen, Martin Holten"]
[Black "Vestby-Ellingsen, Mads"]
[Result "0-1"]
[ECO "D20"]
[WhiteElo "2118"]
[BlackElo "2336"]
[Annotator "RC"]
[PlyCount "96"]
[EventDate "2024.03.25"]
[EventType "swiss"]
[EventCountry "NOR"]
[SourceTitle "playchess.com"]
[Source "ChessBase"]
[SourceQuality "1"]
[TimeControl "40/6000+30:2400+30"]

1. d4 {[%emt 0:00:10]} d5 {[%emt 0:04:01]} 2. c4 {[%emt 0:00:14]} dxc4 {[%emt 0:00:13]} 3. e3 {[%emt 0:02:07]} b5 {[%emt 0:01:20]} 4. a4 {[%emt 0:01:59]} b4 {[%emt 0:00:14]} 5. Bxc4 {[%emt 0:02:31]} Nf6 {[%emt 0:00:23]} 6. Nf3 {[%emt 0:01:14]} e6 {[%emt 0:00:19]} 7. O-O {[%emt 0:01:54]} Be7 {[%emt 0:00:16]} 8. Nbd2 {[%emt 0:01:16]} O-O {[%emt 0:02:08]} 9. Qe2 {[%emt 0:20:16]} c5 {[%emt 0:03:58]} 10. Nb3 {[%emt 0:02:37]} Nbd7 {[%emt 0:01:50]} 11. Rd1 {[%emt 0:03:07]} Qc7 {[%emt 0:04:55]} 12. Bd2 {[%emt 0:08:39]} a5 {[%emt 0:01:27]} 13. e4 {[%emt 0:13:46]} Bb7 {[%emt 0:04:36]} 14. Bd3 {[%emt 0:00:52]} c4 {[%emt 0:05:55]} 15. Bxc4 {[%emt 0:00:11]} Bxe4 {[%emt 0:01:46]} 16. Bg5 {[%emt 0:05:51]} Bxf3 {[%emt 0:12:29]} 17. gxf3 {[%emt 0:00:10]} Nb6 {[%emt 0:02:28]} 18. Bd3 {[%emt 0:02:57]} Nbd5 {[%emt 0:02:31]} 19. Rac1 {[%emt 0:01:24]} Qd6 {[%emt 0:04:21]} 20. Nc5 {[%emt 0:11:11]} Nf4 {[%emt 0:06:17]} 21. Bxf4 {[%emt 0:00:57]} Qxf4 {[%emt 0:00:10]} 22. Nxe6 {[%emt 0:12:27]} fxe6 {[%emt 0:00:29]} 23. Qxe6+ {[%emt 0:00:05]} Kh8 {[%emt 0:00:10]} 24. Qxe7 {[%emt 0:00:37]} Qxf3 {[%emt 0:01:10]} 25. Qe3 {[%emt 0:01:56]} Qh5 {[%emt 0:00:58]} 26. Be2 {[%emt 0:00:41]} Qf7 {[%emt 0:05:36]} 27. Re1 {[%emt 0:07:21]} Rae8 {[%emt 0:03:48]} 28. Qf3 {[%emt 0:01:42]} Qa7 {[%emt 0:11:14]} 29. Bb5 {[%emt 0:01:01]} Rd8 {[%emt 0:00:39]} 30. Rcd1 {[%emt 0:01:02]} Nd5 {[%emt 0:02:21]} 31. Qg3 {[%emt 0:03:03]} Rf6 {[%emt 0:04:37]} 32. Re5 {[%emt 0:00:31]} Nf4 {[%emt 0:06:48]} 33. Rde1 {[%emt 0:00:50]} Qxd4 {[%emt 0:04:21]} 34. Re8+ {[%emt 0:00:06]} Rf8 {[%emt 0:00:05]} 35. Rxd8 {[%emt 0:00:19]} Qxd8 {[%emt 0:00:46]} 36. Kh1 {[%emt 0:02:24]} h6 {[%emt 0:04:00]} 37. Bc6 {[%emt 0:00:57]} Qd2 {[%emt 0:02:55]} 38. Qe3 {[%emt 0:00:28]} Qxb2 {[%emt 0:00:20]} 39. Qe7 {[%emt 0:00:13]} Ng6 {[%emt 0:01:03]} 40. Qd6 {[%emt 0:00:49]} Qxf2 {[%emt 0:03:20]} 41. Rg1 {[%emt 0:06:04]} Nh4 {[%emt 0:01:13]} 42. Qc7 {[%emt 0:09:48]} Qf6 {[%emt 0:07:56]} 43. Bd5 {[%emt 0:02:07]} Nf5 {[%emt 0:17:18]} 44. Qxa5 {[%emt 0:08:29]} Qd4 {[%emt 0:01:37]} 45. Qb5 {[%emt 0:02:18]} Ne3 {[%emt 0:00:46]} 46. Bc6 {[%emt 0:01:09]} Ng4 {[%emt 0:01:56]} 47. Qe2 {[%emt 0:08:22]} Nf2+ {[%emt 0:00:25]} 48. Kg2 {[%emt 0:00:05]} Nh3 {[%emt 0:00:42]} 0-1

[Event "Fagernes Chess GM-Swiss 2024"]
[Site "Fagernes"]
[Date "2024.03.27"]
[Round "5.31"]
[White "Holand, Per Fredrik"]
[Black "Dushyant Sharma"]
[Result "0-1"]
[ECO "E05"]
[WhiteElo "2068"]
[BlackElo "2331"]
[Annotator "RC"]
[PlyCount "76"]
[EventDate "2024.03.25"]
[EventType "swiss"]
[EventCountry "NOR"]
[SourceTitle "playchess.com"]
[Source "ChessBase"]
[SourceQuality "1"]
[TimeControl "40/6000+30:2400+30"]

1. d4 {[%emt 0:03:35]} d5 {[%emt 0:00:11]} 2. c4 {[%emt 0:00:07]} e6 {[%emt 0:00:04]} 3. Nf3 {[%emt 0:00:13]} Nf6 {[%emt 0:00:07]} 4. g3 {[%emt 0:00:58]} Be7 {[%emt 0:00:22]} 5. Bg2 {[%emt 0:00:06]} O-O {[%emt 0:00:05]} 6. O-O {[%emt 0:00:05]} dxc4 {[%emt 0:00:03]} 7. Qc2 {[%emt 0:00:09]} b5 {[%emt 0:05:28]} 8. a4 {[%emt 0:01:31]} b4 {[%emt 0:00:05]} 9. Qxc4 {[%emt 0:01:28]} Nd5 {[%emt 0:09:13]} 10. a5 {[%emt 0:02:07]} Ba6 {[%emt 0:02:33]} 11. Qc2 {[%emt 0:01:00]} Nd7 {[%emt 0:01:00]} 12. Rd1 {[%emt 0:00:36]} c5 {[%emt 0:15:12]} 13. e4 {[%emt 0:00:25]} N5f6 {[%emt 0:00:26]} 14. d5 {[%emt 0:03:39]} exd5 {[%emt 0:05:10]} 15. exd5 {[%emt 0:00:07]} Bd6 {[%emt 0:00:29]} 16. Nh4 {[%emt 0:00:43]} Re8 {[%emt 0:06:46]} 17. Nd2 {[%emt 0:02:12]} Ne5 {[%emt 0:23:15]} 18. Ndf3 {[%emt 0:02:45]} c4 {[%emt 0:05:55]} 19. Nf5 {[%emt 0:01:13]} b3 {[%emt 0:03:01]} 20. Qd2 {[%emt 0:03:27]} h6 {[%emt 0:11:54]} 21. Nxe5 {[%emt 0:22:33]} Bxe5 {[%emt 0:02:33]} 22. d6 {[%emt 0:00:52]} Rc8 {[%emt 0:05:15]} 23. Ne7+ {[%emt 0:08:05]} Rxe7 {[%emt 0:00:15]} 24. dxe7 {[%emt 0:00:05]} Qxe7 {[%emt 0:00:16]} 25. Qe2 {[%emt 0:03:04]} Qe6 {[%emt 0:03:23]} 26. Re1 {[%emt 0:01:33]} Rc5 {[%emt 0:05:01]} 27. Qd1 {[%emt 0:06:52]} Qc8 {[%emt 0:01:39]} 28. f4 {[%emt 0:00:38]} Bxb2 {[%emt 0:02:39]} 29. Bxb2 {[%emt 0:00:37]} c3 {[%emt 0:00:01]} 30. Qxb3 {[%emt 0:05:31]} cxb2 {[%emt 0:00:06]} 31. Qxb2 {[%emt 0:00:18]} Rc2 {[%emt 0:00:48]} 32. Qd4 {[%emt 0:00:57]} Rxg2+ {[%emt 0:00:49]} 33. Kxg2 {[%emt 0:00:06]} Qc6+ {[%emt 0:01:05]} 34. Kg1 {[%emt 0:04:50]} Bb7 {[%emt 0:00:05]} 35. Qd8+ {[%emt 0:00:59]} Kh7 {[%emt 0:00:07]} 36. Qd3+ {[%emt 0:00:06]} g6 {[%emt 0:00:33]} 37. Kf2 {[%emt 0:01:23]} Ng4+ {[%emt 0:00:35]} 38. Ke2 {[%emt 0:00:17]} Ba6 {[%emt 0:01:11]} 0-1

[Event "Fagernes Chess GM-Swiss 2024"]
[Site "Fagernes"]
[Date "2024.03.27"]
[Round "5.32"]
[White "Nordahl, Helge"]
[Black "Avetisyan, Ani"]
[Result "1/2-1/2"]
[ECO "D55"]
[WhiteElo "2330"]
[BlackElo "1840"]
[Annotator "RC"]
[PlyCount "107"]
[EventDate "2024.03.25"]
[EventType "swiss"]
[EventCountry "NOR"]
[SourceTitle "playchess.com"]
[Source "ChessBase"]
[SourceQuality "1"]
[TimeControl "40/6000+30:2400+30"]

1. d4 {[%emt 0:00:05]} d5 {[%emt 0:00:17]} 2. c4 {[%emt 0:00:09]} e6 {[%emt 0:00:04]} 3. Nc3 {[%emt 0:00:05]} Be7 {[%emt 0:00:04]} 4. Nf3 {[%emt 0:00:05]} Nf6 {[%emt 0:00:06]} 5. Bg5 {[%emt 0:00:05]} O-O {[%emt 0:00:05]} 6. e3 {[%emt 0:00:05]} b6 {[%emt 0:00:04]} 7. Rc1 {[%emt 0:00:46]} Bb7 {[%emt 0:09:43]} 8. cxd5 {[%emt 0:00:18]} Nxd5 {[%emt 0:00:06]} 9. Bxe7 {[%emt 0:00:29]} Qxe7 {[%emt 0:00:04]} 10. Nxd5 {[%emt 0:00:34]} exd5 {[%emt 0:00:31]} 11. Bd3 {[%emt 0:00:47]} g6 {[%emt 0:03:26]} 12. Qa4 {[%emt 0:06:58]} c5 {[%emt 0:05:19]} 13. Qa3 {[%emt 0:02:23]} Rc8 {[%emt 0:04:19]} 14. O-O {[%emt 0:03:19]} Nd7 {[%emt 0:03:27]} 15. Rc2 {[%emt 0:05:27]} Qf6 {[%emt 0:04:10]} 16. Bb5 {[%emt 0:06:39]} Bc6 {[%emt 0:06:35]} 17. Bxc6 {[%emt 0:03:18]} Rxc6 {[%emt 0:00:56]} 18. dxc5 {[%emt 0:00:36]} bxc5 {[%emt 0:08:25]} 19. Rfc1 {[%emt 0:01:47]} Ra6 {[%emt 0:16:06]} 20. Qd3 {[%emt 0:01:15]} Rb8 {[%emt 0:06:54]} 21. b3 {[%emt 0:07:12]} Rd6 {[%emt 0:03:01]} 22. h3 {[%emt 0:08:13]} Rb4 {[%emt 0:08:32]} 23. Qc3 {[%emt 0:14:29]} Qxc3 {[%emt 0:06:47]} 24. Rxc3 {[%emt 0:00:05]} h5 {[%emt 0:00:20]} 25. Rd1 {[%emt 0:04:02]} a5 {[%emt 0:04:37]} 26. Ne1 {[%emt 0:05:04]} Rbb6 {[%emt 0:09:56]} 27. Nd3 {[%emt 0:04:06]} d4 {[%emt 0:02:18]} 28. exd4 {[%emt 0:00:33]} Rxd4 {[%emt 0:00:05]} 29. Rdc1 {[%emt 0:01:01]} a4 {[%emt 0:00:36]} 30. R1c2 {[%emt 0:06:09]} axb3 {[%emt 0:02:10]} 31. axb3 {[%emt 0:00:05]} Kf8 {[%emt 0:00:22]} 32. Kf1 {[%emt 0:01:06]} Re4 {[%emt 0:01:22]} 33. f3 {[%emt 0:01:05]} Rd4 {[%emt 0:01:35]} 34. Kf2 {[%emt 0:03:51]} Ke7 {[%emt 0:00:29]} 35. Ke3 {[%emt 0:00:14]} Re6+ {[%emt 0:00:09]} 36. Kf2 {[%emt 0:00:48]} Rb6 {[%emt 0:00:11]} 37. Re2+ {[%emt 0:00:26]} Kf6 {[%emt 0:00:56]} 38. Re3 {[%emt 0:01:27]} Rb5 {[%emt 0:00:33]} 39. Re8 {[%emt 0:01:16]} Rd5 {[%emt 0:01:36]} 40. f4 {[%emt 0:02:12]} Ra5 {[%emt 0:00:26]} 41. Rc8 {[%emt 0:41:25]} Rb5 {[%emt 0:41:46]} 42. Ke3 {[%emt 0:01:58]} Kg7 {[%emt 0:00:56]} 43. g4 {[%emt 0:01:11]} hxg4 {[%emt 0:00:29]} 44. hxg4 {[%emt 0:00:01]} g5 {[%emt 0:00:46]} 45. Rc7 {[%emt 0:04:49]} gxf4+ {[%emt 0:00:00]} 46. Nxf4 {[%emt 0:00:00]} Re5+ {[%emt 0:00:00]} 47. Kf3 {[%emt 0:00:00]} Nf6 {[%emt 0:00:00]} 48. Nd3 {[%emt 0:00:00]} Nd5 {[%emt 0:00:00]} 49. Nxe5 {[%emt 0:00:00]} Nxc7 {[%emt 0:00:00]} 50. Ke4 {[%emt 0:00:00]} Rb4+ {[%emt 0:00:00]} 51. Nc4 {[%emt 0:00:00]} Nb5 {[%emt 0:00:00]} 52. Re3 {[%emt 0:00:00]} Nd4 {[%emt 0:00:33]} 53. Kd5 {[%emt 0:00:04]} Nxb3 {[%emt 0:00:02]} 54. Re7 {[%emt 0:00:07]} 1/2-1/2